{"text_format":"1","workbook":"xlsx","n_sheets":13,"sheets":["1. Forside","2. Samlet prisloft","3. Driftsomkostninger","4. Historiske investeringer","5. Gennemførte investeringer","6. Korrektion investeringer","7. Planlagte investeringer","8. 1-1 omkostninger","9. Miljø- og servicemål","10. Klimatilpasning","11. Nettofinansielle poster","12. Over- eller underdækning","13. Kontrol med indtægtsrammen"],"not_rendered":{"charts":0,"images":0,"macros":1,"external_links":0,"defined_names":0,"comments":0,"pivot_tables":0},"unopened":[],"bounds":{"document_bytes":16777216,"sheet_cells":100000,"rows_first":2000,"rows_last":500,"rows_between":2000,"halvings":0,"cell_chars":16384,"cell_head_chars":4096},"cells_cut":0,"cells_raw":0,"read":"whole","date_system":"1900"}

{"sheet":"1. Forside","index":0,"n_rows":27,"n_cols":4,"rows_kept":27,"cut":false,"hidden":false,"merged":[[21,3,21,5],[20,3,20,5],[19,3,19,5],[18,3,18,5],[7,3,7,5],[12,3,12,5],[15,3,15,5],[16,3,16,5],[17,3,17,5],[26,3,26,5],[25,3,25,5],[24,3,24,5],[23,3,23,5],[22,3,22,5]]}
["Tønder Spildevand A/S"]
[]
[]
[]
[]
[]
[]
[null,null,null,"Bilag A"]
[]
[]
[]
[]
[null,null,null,"Indholdsfortegnelse"]
[]
[]
[null,null,"Fane nr. 2","Samlet prisloft "]
[null,null,"Fane nr. 3","Driftsomkostninger"]
[null,null,"Fane nr. 4","Historiske investeringer "]
[null,null,"Fane nr. 5","Gennemførte investeringer"]
[null,null,"Fane nr. 6","Korrektion investeringer"]
[null,null,"Fane nr. 7","Planlagte investeringer"]
[null,null,"Fane nr. 8","1:1 omkostninger"]
[null,null,"Fane nr. 9","Miljø- og servicemål"]
[null,null,"Fane nr. 10","Klimatilpasning"]
[null,null,"Fane nr. 11","Nettofinansielle poster"]
[null,null,"Fane nr. 12","Over- eller underdækning"]
[null,null,"Fane nr. 13","Kontrol med indtægtsrammen og oversigt over ekstraordinære effektiviseringsgevinster"]

{"sheet":"2. Samlet prisloft","index":1,"n_rows":39,"n_cols":6,"rows_kept":39,"cut":false,"hidden":false,"merged":[[3,1,3,5]]}
[{"$f":"'1. Forside'!A1","v":"Tønder Spildevand A/S"}]
[]
[]
[null,"Fane 2. Samlet prisloft for 2015"]
[]
[null,"Driftsomkostninger"]
[null,"Korrigerede driftsomkostninger i prisloftet for 2014",{"$f":"'3. Driftsomkostninger'!C22","v":28304602.357076962},"kr."]
[null,"Bortfald af væsentlige omkostninger",{"$f":"-'3. Driftsomkostninger'!C27","v":0},"kr."]
[null,"Korrektion for periodevise driftsomkostninger",{"$f":"'3. Driftsomkostninger'!C33","v":-210576},"kr."]
[null,"Korrektion for prisudviklingen 2014-2015",{"$f":"'3. Driftsomkostninger'!C39","v":22475.221085661571},"kr."]
[null,"Forhøjelse til effektivt niveau iht. benchmarkingen",{"$f":"'3. Driftsomkostninger'!C45","v":0},"kr."]
[null,"Korrektion for generelt effektiviseringskrav",{"$f":"-'3. Driftsomkostninger'!C51","v":-123613.71597113863},"kr."]
[null,"Korrektion for individuelt effektiviseringskrav",{"$f":"-'3. Driftsomkostninger'!C60","v":-838606.66619457607},"kr."]
[null,"Driftsomkostninger i alt",{"$f":"SUM(C7:C13)","v":27154281.195996907},"kr.",{"$f":"C14","v":27154281.195996907}," kr."]
[null,"Investeringer"]
[null,"Tillæg for historiske investeringer",{"$f":"'4. Historiske investeringer'!C9","v":39947847.798464395},"kr."]
[null,"Tillæg for gennemførte investeringer i 2011-2013",{"$f":"'5. Gennemførte investeringer'!F101","v":2984123.4979999992},"kr."]
[null,"Korrektion af tillæg for planlagte investeringer vedrørende 2013  ",{"$f":"'6. Korrektion investeringer'!C10","v":570019.60999999847},"kr."]
[null,"Tillæg for planlagte investeringer i 2014 og 2015",{"$f":"'7. Planlagte investeringer'!F112","v":1900045},"kr."]
[null,"Investeringstillæg i alt",{"$f":"SUM(C16:C19)","v":45402035.90646439},"kr.",{"$f":"C20","v":45402035.90646439}," kr."]
[null,"Øvrige omkostninger mv."]
[null,"Tillæg for 1:1 omkostninger i 2015",{"$f":"'8. 1-1 omkostninger'!C12","v":1856029},"kr."]
[null,"Tillæg vedr. revisorerklæringer og DANVA/FVD-kontingent",{"$f":"'8. 1-1 omkostninger'!C18","v":152800},"kr."]
[null,"Korrektion ift. faktiske 1:1 omkostninger i 2013",{"$f":"'8. 1-1 omkostninger'!C24","v":-1205484},"kr."]
[null,"Tillæg for driftsomkostninger til miljø- og servicemål i 2015",{"$f":"'9. Miljø- og servicemål'!C8","v":300000},"kr."]
[null,"Korrektion ift. faktiske driftsomkostninger til miljø- og servicemål i 2013",{"$f":"'9. Miljø- og servicemål'!C14","v":0},"kr."]
[null,"Tillæg for driftsomkostninger til medfinansiering af klimatilpasningsprojekter i 2015",{"$f":"'10. Klimatilpasning'!C9","v":0},"kr."]
[null,"Korrektion ift. faktiske omkostninger til medfinansiering af klimatilpasningsprojekter i 2013",{"$f":"'10. Klimatilpasning'!C15","v":0},"kr."]
[null,"Tillæg/fradrag for nettofinansielle poster i 2015",{"$f":"'11. Nettofinansielle poster'!C9","v":1447099},"kr."]
[null,"Korrektion ift. faktiske nettofinansielle poster i 2013",{"$f":"'11. Nettofinansielle poster'!C15","v":1035099},"kr."]
[null,"Øvrige omkostninger mv. i alt",{"$f":"SUM(C22:C30)","v":3585543},"kr.",{"$f":"C31","v":3585543}," kr."]
[null,"Historisk over- eller underdækning"]
[null,"Tillæg/fradrag for over- eller underdækning til og med 2010",{"$f":"'12. Over- eller underdækning'!C11","v":-738993.37301587302},"kr.",{"$f":"C33","v":-738993.37301587302}," kr."]
[null,"Korrektion i forhold til tidligere indtægtsramme "]
[null,"Korrektion for overholdelse af indtægtsramme i prisloft 2013",{"$f":"'13. Kontrol med indtægtsrammen'!E28","v":9397088.2799307108},"kr.",{"$f":"C35","v":9397088.2799307108}," kr."]
[null,"Samlet prisloft"]
[null,"Indtægtsramme i 2015 ",null,null,{"$f":"SUM(E14:E35)","v":84799955.009376138}," kr."]
[null,"Debiteret vandmængde i 2013",null,null,1845276," m3"]
[null,"Prisloft 2015",null,null,{"$f":"E37/E38","v":45.955160642297486}," kr./m3"]

{"sheet":"3. Driftsomkostninger","index":2,"n_rows":60,"n_cols":4,"rows_kept":60,"cut":false,"hidden":false,"merged":[[3,1,3,3]]}
[{"$f":"'1. Forside'!A1","v":"Tønder Spildevand A/S"}]
[]
[]
[null,"Fane 3. Driftsomkostninger "]
[]
[null,"Driftsomkostningerne i prisloftet for 2014"]
[null,"Korrigerede driftsomkostninger i prisloftet for 2013 (DOiPL 2013)",26200714.944000002,"kr."]
[null,"Tillæg i henhold til § 8, stk. 2, pkt. 1",4309719.7128719995,"kr."]
[null,"Prisfremskrivning 1,5 pct.",{"$f":"0.015*SUM(C7:C8)","v":457656.51985307998},"kr."]
[null,"Generelt effektiviseringskrav (0 pct.)",0,"kr."]
[null,"Korrektion af periodevise driftsomkostninger iht. § 8, stk. 2",-2596255,"kr."]
[null,"Individuelt effektiviseringskrav ",-1525522,"kr."]
[null,"Driftsomkostningerne i prisloftet for 2014",{"$f":"SUM(C7:C12)","v":26846314.176725082},"kr."]
[null,"Udtræk af korrektion af periodevise driftsomkostninger",2596255,"kr."]
[null,"Driftsomkostningerne i prisloftet for 2014 (DOiPL 2014)",{"$f":"C13+C14","v":29442569.176725082},"kr."]
[]
[]
[null,"Forskel i § 8, stk. 2, pkt. 1 - tillæg"]
[null,"Godkendt tillæg i PL2014 prisfremskrevet til 2014-niveau",4374365.5085650794,"kr."]
[null,"Godkendt tillæg i PL2015 prisfremskrevet til 2014-niveau",3236398.6889169593,"kr."]
[null,"Forskel",{"$f":"C20-C19","v":-1137966.8196481201},"kr."]
[null,"Korrigerede driftsomkostninger i prisloftet for 2014",{"$f":"C15+C21","v":28304602.357076962},"kr."]
[]
[]
[null,"Korrektion for forventet bortfald af væsentlige omkostninger"]
[null,"Selskabets indberettede bortfald af væsentlige omkostninger inden 2015",0,"kr."]
[null,"Korrektion for forventet bortfald ",{"$f":"SUM(C26:C26)","v":0},"kr."]
[]
[]
[null,"Korrektion for periodevise driftsomkostninger"]
[null,"Del af godkendt tillæg i PL2013 vedrørende omkostninger i 2013",2366231,"kr."]
[null,"Faktisk udgift til periodevise driftsomkostninger i 2013",2155655,"kr."]
[null,"Korrektion for periodevise driftsomkostninger",{"$f":"C32-C31","v":-210576},"kr."]
[]
[]
[null,"Korrektion for prisudviklingen fra 2014-2015"]
[null,"Driftsomkostningerne i prisloftet for 2014",{"$f":"C22-C27+C33","v":28094026.357076962},"kr."]
[null,"Prisudvikling 2014 - 2015 ",0.08,"pct."]
[null,"Korrektion for prisudvikling",{"$f":"C37*(C38/100)","v":22475.221085661571},"kr."]
[]
[]
[null,"Eventuel forhøjelse til effektivt niveau iht. benchmarkingen"]
[null,"Selskabets effektive driftsomkostninger iht. benchmarkingen",21033997.017751392,"kr."]
[null,"Selskabets pristalskorrigerede driftsomkostninger i 2015-niveau",{"$f":"C37+C39","v":28116501.578162622},"kr."]
[null,"Eventuel forhøjelse til effektivt niveau",{"$f":"IF(C44>C43,0,C43-C44)","v":0},"kr."]
[]
[]
[null,"Korrektion for generelt effektiviseringskrav"]
[null,"Driftsomkostningerne i prisloftet for 2014",{"$f":"C37","v":28094026.357076962},"kr. "]
[null,"Generelt effektiviseringskrav ",0.44,"pct."]
[null,"Endeligt generelt effektiviseringskrav",{"$f":"C49*(C50/100)","v":123613.71597113863},"kr. "]
[]
[]
[null,"Korrektion for individuelt effektiviseringskrav"]
[null,"Rå effektiviseringspotentiale",7127454.3120121919,"kr."]
[null,"Effektiviseringspotentiale efter eventuel korrektion for særlige forhold",7060028.6504086098,"kr."]
[null,"Effektiviseringspotentiale efter forsigtighedshensyn",3354426.6647783043,"kr."]
[null,"Effektiviseringspotentiale efter eventuel korrektion for sammensætning af signifikante costdrivere",3354426.6647783043,"kr. "]
[null,"Umiddelbart effektiviseringskrav",{"$f":"C58/4","v":838606.66619457607},"kr."]
[null,"Endeligt individuelt effektiviseringskrav",{"$f":"IF(C59>0.05*C37,0.05*C37,IF(C59<0.01*C37,0,C59))","v":838606.66619457607},"kr. "]

{"sheet":"4. Historiske investeringer","index":3,"n_rows":9,"n_cols":4,"rows_kept":9,"cut":false,"hidden":false,"merged":[[3,1,3,2]]}
[{"$f":"'3. Driftsomkostninger'!A1","v":"Tønder Spildevand A/S"}]
[]
[]
[null,"Fane 4. Historiske investeringer "]
[]
[null,"Tillæg for historiske investeringer "]
[null,"Værdi af selskabets materielle anlægsaktiver pr. 1. januar 2010",1697491025.1818051,"kr."]
[null,"Den årlige standardafskrivning på de materielle anlægsaktiver iht. POLKA",39947847.798464395,"kr."]
[null,"Tillæg i alt i 2015",{"$f":"C8","v":39947847.798464395},"kr."]

{"sheet":"5. Gennemførte investeringer","index":4,"n_rows":101,"n_cols":7,"rows_kept":101,"cut":false,"hidden":false,"merged":[[3,1,3,5],[6,5,6,6]]}
[{"$f":"'4. Historiske investeringer'!A1","v":"Tønder Spildevand A/S"}]
[]
[]
[null,"Fane 5. Gennemførte investeringer i 2010 - 2013 "]
[]
[null,"Tillæg for gennemførte investeringer i 2013"]
[null," Beskrivelse af investeringen   ","Årstal ","Std. levetid (år)   "," Anskaffelses-pris (kr.)","Afskrivning "]
[null,"Ledningsnet = Ø 200 mm",2013,75,339573,{"$f":"E8/D8","v":4527.6400000000003},"kr."]
[null,"Ø 200 mm < Ledningsnet = Ø 500 mm",2013,75,572477,7633.0266666666666,"kr."]
[null,"Brønde",2013,75,40416,538.88,"kr."]
[null,"Ledningsnet = Ø 200 mm",2013,75,55272,736.96,"kr."]
[null,"Brønde",2013,75,115751,1543.3466666666666,"kr."]
[null,"Ledningsnet = Ø 200 mm",2013,75,17893,238.57333333333332,"kr."]
[null,"Ø 200 mm < Ledningsnet = Ø 500 mm",2013,75,303115,4041.5333333333333,"kr."]
[null,"Ø 500 mm < Ledningsnet = Ø 800 mm",2013,75,18988,{"$f":"E15/D15","v":253.17333333333335},"kr."]
[null,"Brønde",2013,75,8192,109.22666666666667,"kr."]
[null,"Brønde",2013,75,8465,112.86666666666666,"kr."]
[null,"Ledningsnet = Ø 200 mm",2013,75,30435,405.8,"kr."]
[null,"Brønde",2013,75,14527,193.69333333333333,"kr."]
[null,"Ledningsnet = Ø 200 mm",2013,75,136268,1816.9066666666668,"kr."]
[null,"Tryksatte minipumpestationer (husstandssystemer)",2013,30,21259,708.63333333333333,"kr."]
[null,"Ledningsnet = Ø 200 mm",2013,75,33058,440.77333333333331,"kr."]
[null,"Tryksatte minipumpestationer (husstandssystemer)",2013,30,69051,2301.6999999999998,"kr."]
[null,"Brønde",2013,75,1426362,19018.16,"kr."]
[null,"Ledningsnet = Ø 200 mm",2013,75,7277556,97034.08,"kr."]
[null,"Pumpestationer i brønde (< 6,25 m2), Konstruktioner",2013,50,7643420,152868.4,"kr."]
[null,"Pumpestationer i brønde (< 6,25 m2), Mek/EL",2013,20,1841788,92089.4,"kr."]
[null,"Pumpestationer i brønde (< 6,25 m2), SRO",2013,10,460447,46044.7,"kr."]
[null,"Tryksatte minipumpestationer (husstandssystemer)",2013,30,286500,9550,"kr."]
[null,"Brønde",2013,75,545834,7277.7866666666669,"kr."]
[null,"Ledningsnet = Ø 200 mm",2013,75,1257622,16768.293333333335,"kr."]
[null,"Ø 200 mm < Ledningsnet = Ø 500 mm",2013,75,331990,4426.5333333333338,"kr."]
[null,"Brønde",2013,75,5510,73.466666666666669,"kr."]
[null,"Ledningsnet = Ø 200 mm",2013,75,2536,33.813333333333333,"kr."]
[null,"Ø 200 mm < Ledningsnet = Ø 500 mm",2013,75,4534,60.453333333333333,"kr."]
[null,"Brønde",2013,75,435347,5804.626666666667,"kr."]
[null,"Ledningsnet = Ø 200 mm",2013,75,869,11.586666666666666,"kr."]
[null,"Ø 200 mm < Ledningsnet = Ø 500 mm",2013,75,214415,2858.8666666666668,"kr."]
[null,"Brønde",2013,75,90301,1204.0133333333333,"kr."]
[null,"Ledningsnet = Ø 200 mm",2013,75,237226,3163.0133333333333,"kr."]
[null,"Brønde",2013,75,47825,637.66666666666663,"kr."]
[null,"Ledningsnet = Ø 200 mm",2013,75,23575,314.33333333333331,"kr."]
[null,"Ledningsnet = Ø 200 mm",2013,75,123980,1653.0666666666666,"kr."]
[null,"Beluftningstanke, Mek/EL",2013,20,247163,12358.15,"kr."]
[null,"Beluftningstanke, SRO",2013,10,37127,3712.7,"kr."]
[null,"Pumpestationer i brønde (< 6,25 m2), Konstruktioner",2013,50,957777,19155.54,"kr."]
[null,"Pumpestationer i brønde (< 6,25 m2), Mek/EL",2013,20,430461,21523.05,"kr."]
[null,"Pumpestationer i brønde (< 6,25 m2), SRO",2013,10,125551,12555.1,"kr."]
[null,"Pumpestationer m. overbygning (< 20 m2), Mek/EL",2013,20,176967,8848.35,"kr."]
[null,"Tryksatte minipumpestationer (husstandssystemer)",2013,30,28697,956.56666666666672,"kr."]
[null,"Brønde",2013,75,29609,394.78666666666669,"kr."]
[null,"Ledningsnet = Ø 200 mm",2013,75,108187,1442.4933333333333,"kr."]
[null,"Tryksatte minipumpestationer (husstandssystemer)",2013,30,43331,1444.3666666666666,"kr."]
[null,"Brønde",2013,75,35711,476.14666666666665,"kr."]
[null,"Ledningsnet = Ø 200 mm",2013,75,3985,53.133333333333333,"kr."]
[null,"Tryksatte minipumpestationer (husstandssystemer)",2013,30,52261,1742.0333333333333,"kr."]
[null,"Brønde",2013,75,27747,369.96,"kr."]
[null,"Ledningsnet = Ø 200 mm",2013,75,175880,2345.0666666666666,"kr."]
[null,"Tryksatte minipumpestationer (husstandssystemer)",2013,30,40606,1353.5333333333333,"kr."]
[null,"Køretøjer, entreprenørmaskiner",2013,5,118112,23622.400000000001,"kr."]
[null,"Køretøjer, entreprenørmaskiner",2013,5,118500,23700,"kr."]
[null,"Brønde",2013,75,1199065,15987.533333333333,"kr."]
[null,"Indløb-/udløbsarrangement",2013,75,219341,2924.5466666666666,"kr."]
[null,"Jordbassin Klasse A",2013,50,2822190,56443.8,"kr."]
[null,"Ledningsnet = Ø 200 mm",2013,75,1682204,22429.386666666665,"kr."]
[null,"Pumpestationer i brønde (< 6,25 m2), Konstruktioner",2013,50,910266,18205.32,"kr."]
[null,"Pumpestationer i brønde (< 6,25 m2), Mek/EL",2013,20,219341,10967.05,"kr."]
[null,"Pumpestationer i brønde (< 6,25 m2), SRO",2013,10,54835,5483.5,"kr."]
[null,"Tryksatte minipumpestationer (husstandssystemer)",2013,30,43868,1462.2666666666667,"kr."]
[null,"Ø 200 mm < Ledningsnet = Ø 500 mm",2013,75,281733,3756.44,"kr."]
[null,"Ø 500 mm < Ledningsnet = Ø 800 mm",2013,75,37674,502.32,"kr."]
[null,"Brønde",2013,75,2203014,29373.52,"kr."]
[null,"Ledningsnet = Ø 200 mm",2013,75,9425555,125674.06666666667,"kr."]
[null,"Pumpestationer i brønde (< 6,25 m2), Konstruktioner",2013,50,2157949,43158.98,"kr."]
[null,"Pumpestationer i brønde (< 6,25 m2), Mek/EL",2013,20,519988,25999.4,"kr."]
[null,"Pumpestationer i brønde (< 6,25 m2), SRO",2013,10,129997,12999.7,"kr."]
[null,"Tryksatte minipumpestationer (husstandssystemer)",2013,30,138663,4622.1000000000004,"kr."]
[null,"Sand- og fedtfang, Mek/EL",2013,20,419158,20957.900000000001,"kr."]
[null,"Slutafvanding, slam - højteknologisk (centrifuger), Konstruktioner",2013,60,2025930,33765.5,"kr."]
[null,"Slutafvanding, slam - højteknologisk (centrifuger), Mek/El",2013,20,1938605,96930.25,"kr."]
[null,"Slutafvanding, slam - højteknologisk (centrifuger), SRO",2013,10,157184,15718.4,"kr."]
[null,"Ledningsnet = Ø 200 mm",2013,75,1400423,18672.306666666667,"kr."]
[null,"Brønde",2013,75,107271,1430.28,"kr."]
[null,"Ledningsnet = Ø 200 mm",2013,75,438894,5851.92,"kr."]
[null,"Ø 1000 mm < Ledningsnet = Ø 1200 mm",2013,75,288531,3847.08,"kr."]
[null,"Ø 200 mm < Ledningsnet = Ø 500 mm",2013,75,11350,151.33333333333334,"kr."]
[null,"Ø 500 mm < Ledningsnet = Ø 800 mm",2013,75,8405,112.06666666666666,"kr."]
[null,"Mindre renseanlæg < 5.000 PE uden mulighed for opdeling",2013,40,415763,10394.075000000001,"kr."]
[null,"Brønde",2013,75,84392,1125.2266666666667,"kr."]
[null,"Ledningsnet = Ø 200 mm",2013,75,219336,2924.48,"kr."]
[null,"Brønde",2013,75,379102,5054.6933333333336,"kr."]
[null,"Ledningsnet = Ø 200 mm",2013,75,97130,1295.0666666666666,"kr."]
[null,"Ø 200 mm < Ledningsnet = Ø 500 mm",2013,75,549690,7329.2,"kr."]
[null,"Brønde",2013,75,178802,2384.0266666666666,"kr."]
[null,"Mindre renseanlæg < 5.000 PE uden mulighed for opdeling",2013,10,1728883,172888.3,"kr."]
[null,"Mindre renseanlæg < 5.000 PE uden mulighed for opdeling",2013,10,1456210,145621,"kr."]
[null,"Mindre renseanlæg < 5.000 PE uden mulighed for opdeling",2013,10,448472,44847.199999999997,"kr."]
[null,"Mindre renseanlæg < 5.000 PE uden mulighed for opdeling",2013,10,179047,17904.7,"kr."]
[null,"Tillæg for 2013 ",null,null,null,{"$f":"SUM(F8:F98)","v":1611743.3049999992},"kr."]
[null,"Tillæg for 2010 - 2012",null,null,null,1372380.193,"kr."]
[null,"Samlet tillæg for gennemførte investeringer",null,null,null,{"$f":"F99+F100","v":2984123.4979999992},"kr."]

{"sheet":"6. Korrektion investeringer","index":5,"n_rows":10,"n_cols":4,"rows_kept":10,"cut":false,"hidden":false,"merged":[[3,1,3,3]]}
[{"$f":"'5. Gennemførte investeringer'!A1","v":"Tønder Spildevand A/S"}]
[]
[]
[null,"Fane 6. Korrektion af tillæg for planlagte investeringer"]
[]
[null,"Korrektion af tillæg for planlagte investeringer vedr. 2013"]
[null,"Tillæg for planlagte investeringer i 2013 i prisloft 2013",838507,"kr."]
[null,"Tillæg for planlagte investeringer i 2013 i prisloft 2014",1814960,"kr."]
[null,"Selskabets faktiske afskrivninger på gennemførte investeringer i 2013",{"$f":"'5. Gennemførte investeringer'!F99","v":1611743.3049999992},"kr."]
[null,"Korrektion af tillæg for planlagte investeringer vedr. 2013",{"$f":"C9-C7+C9-C8","v":570019.60999999847},"kr."]

{"sheet":"7. Planlagte investeringer","index":6,"n_rows":112,"n_cols":7,"rows_kept":112,"cut":false,"hidden":false,"merged":[[6,5,6,6],[3,1,3,6]]}
[{"$f":"'6. Korrektion investeringer'!A1","v":"Tønder Spildevand A/S"}]
[]
[]
[null,"Fane 7. Planlagte investeringer "]
[]
[null,"Tillæg for planlagte investeringer i 2014 og 2015"]
[null,"Beskrivelse af investeringen   ","Årstal ","Std. levetid (år)   ","Anskaffelses-pris (kr.)   ","Afskrivning"]
[null,"Brønde",2014,75,75000,{"$f":"E8/D8","v":1000},"kr."]
[null,"Ø 200 mm < Ledningsnet = Ø 500 mm",2014,75,505000,{"$f":"E9/D9","v":6733.333333333333},"kr."]
[null,"Pumpestationer i brønde (< 6,25 m2), Konstruktioner",2014,50,70000,1400,"kr."]
[null,"Pumpestationer i brønde (< 6,25 m2), Mek/EL",2014,20,20000,1000,"kr."]
[null,"Pumpestationer i brønde (< 6,25 m2), SRO",2014,10,30000,3000,"kr."]
[null,"Strømpeforing = Ø 200 mm",2014,50,50000,1000,"kr."]
[null,"Strømpeforing Ø 200 mm < Ledningsnet = Ø 500 mm",2014,50,750000,15000,"kr."]
[null,"Brønde",2014,75,70000,933.33333333333337,"kr."]
[null,"Strømpeforing = Ø 200 mm",2014,50,50000,1000,"kr."]
[null,"Strømpeforing Ø 200 mm < Ledningsnet = Ø 500 mm",2014,50,240000,4800,"kr."]
[null,"Strømpeforing = Ø 200 mm",2014,50,225000,4500,"kr."]
[null,"Strømpeforing = Ø 200 mm",2014,50,125000,2500,"kr."]
[null,"Ledningsnet = Ø 200 mm",2014,75,300000,4000,"kr."]
[null,"Ledningsnet = Ø 200 mm",2014,75,75000,1000,"kr."]
[null,"Strømpeforing Ø 200 mm < Ledningsnet = Ø 500 mm",2014,50,250000,5000,"kr."]
[null,"Pumpestationer i brønde (< 6,25 m2), Konstruktioner",2014,50,900000,18000,"kr."]
[null,"Pumpestationer i brønde (< 6,25 m2), Mek/EL",2014,20,200000,10000,"kr."]
[null,"Pumpestationer i brønde (< 6,25 m2), SRO",2014,10,100000,10000,"kr."]
[]
[null,"Tryksatte minipumpestationer (husstandssystemer)",2014,30,96000,3200,"kr."]
[null,"Ø 200 mm < Ledningsnet = Ø 500 mm",2014,75,400000,5333.333333333333,"kr."]
[null,"Tryksatte minipumpestationer (husstandssystemer)",2014,30,96000,3200,"kr."]
[]
[null,"Mindre renseanlæg < 5.000 PE uden mulighed for opdeling",2014,40,306000,7650,"kr."]
[null,"Indløb med riste, Konstruktioner",2014,60,3500000,58333.333333333336,"kr."]
[null,"Indløb med riste, Mek/EL",2014,20,150000,7500,"kr."]
[null,"Indløb med riste, SRO",2014,10,937500,93750,"kr."]
[null,"Efterbehandlingsanlæg (sandfilter), Konstruktioner",2014,60,4592500,76541.666666666672,"kr."]
[null,"Ledningsnet = Ø 200 mm",2014,75,30000,400,"kr."]
[null,"Brønde",2014,75,5000,66.666666666666671,"kr."]
[null,"Pumpestationer i brønde (< 6,25 m2), Konstruktioner",2014,50,105000,2100,"kr."]
[null,"Pumpestationer i brønde (< 6,25 m2), Mek/EL",2014,20,155000,7750,"kr."]
[null,"Pumpestationer i brønde (< 6,25 m2), SRO",2014,10,5000,500,"kr."]
[null,"Ledningsnet = Ø 200 mm",2014,75,60000,800,"kr."]
[null,"Brønde",2014,75,15000,200,"kr."]
[null,"Forsinkelsesbassiner, lukkede med automatisk rensning og SRO Miljøklasse A (500-1.000 m3) - Konstruktioner",2014,75,555000,7400,"kr."]
[null,"Pumpestationer i brønde (< 6,25 m2), Konstruktioner",2014,50,130000,2600,"kr."]
[null,"Pumpestationer i brønde (< 6,25 m2), Mek/EL",2014,20,55000,2750,"kr."]
[null,"Pumpestationer i brønde (< 6,25 m2), SRO",2014,10,100000,10000,"kr."]
[null,"Ledningsnet = Ø 200 mm",2014,75,115000,1533.3333333333333,"kr."]
[null,"Forsinkelsesbassiner, lukkede med automatisk rensning og SRO Miljøklasse A (500-1.000 m3) - Konstruktioner",2014,75,2805000,37400,"kr."]
[null,"Pumpestationer i brønde (< 6,25 m2), Konstruktioner",2014,50,100000,2000,"kr."]
[null,"Pumpestationer i brønde (< 6,25 m2), Mek/EL",2014,20,50000,2500,"kr."]
[null,"Pumpestationer i brønde (< 6,25 m2), SRO",2014,10,20000,2000,"kr."]
[null,"Pumpestationer i brønde (< 6,25 m2), Konstruktioner",2014,50,150000,3000,"kr."]
[null,"Tryksatte minipumpestationer (husstandssystemer)",2014,30,200000,6666.666666666667,"kr."]
[null,"Pumpestationer i brønde (< 6,25 m2), Mek/EL",2014,20,14000,700,"kr."]
[null,"Pumpestationer i brønde (< 6,25 m2), Konstruktioner",2014,50,175000,3500,"kr."]
[null,"Pumpestationer i brønde (< 6,25 m2), Mek/EL",2014,20,75000,3750,"kr."]
[null,"Pumpestationer i brønde (< 6,25 m2), SRO",2014,10,50000,5000,"kr."]
[null,"Pumpestationer i brønde (< 6,25 m2), Mek/EL",2014,20,70000,3500,"kr."]
[null,"Pumpestationer i brønde (< 6,25 m2), Mek/EL",2014,20,22000,1100,"kr."]
[null,"Pumpestationer i brønde (< 6,25 m2), Mek/EL",2014,20,22000,1100,"kr."]
[null,"Pumpestationer i brønde (< 6,25 m2), Konstruktioner",2014,50,50000,1000,"kr."]
[null,"Pumpestationer i brønde (< 6,25 m2), Mek/EL",2014,20,30000,1500,"kr."]
[null,"Pumpestationer i brønde (< 6,25 m2), Konstruktioner",2014,50,100000,2000,"kr."]
[null,"Pumpestationer i brønde (< 6,25 m2), Mek/EL",2014,20,50000,2500,"kr."]
[null,"Pumpestationer i brønde (< 6,25 m2), SRO",2014,10,20000,2000,"kr."]
[null,"Pumpestationer i brønde (< 6,25 m2), Konstruktioner",2014,50,150000,3000,"kr."]
[null,"Pumpestationer i brønde (< 6,25 m2), Mek/EL",2014,20,75000,3750,"kr."]
[null,"Ø 200 mm < Ledningsnet = Ø 500 mm",2014,75,650000,{"$f":"E68/D68","v":8666.6666666666661},"kr."]
[null,"Ø 200 mm < Ledningsnet = Ø 500 mm",2014,75,644000,8586.6666666666661,"kr."]
[null,"Ø 200 mm < Ledningsnet = Ø 500 mm",2014,75,100000,1333.3333333333333,"kr."]
[null,"Ø 200 mm < Ledningsnet = Ø 500 mm",2014,75,1020000,13600,"kr."]
[null,"Ø 200 mm < Ledningsnet = Ø 500 mm",2014,75,2160000,28800,"kr."]
[null,"Ø 200 mm < Ledningsnet = Ø 500 mm",2014,75,400000,5333.333333333333,"kr."]
[null,"Ø 200 mm < Ledningsnet = Ø 500 mm",2014,75,200000,2666.6666666666665,"kr."]
[null,"Ø 200 mm < Ledningsnet = Ø 500 mm",2014,75,850000,11333.333333333334,"kr."]
[null,"Beluftningstanke, Konstruktioner",2014,60,2400000,40000,"kr."]
[null,"Ø 200 mm < Ledningsnet = Ø 500 mm",2014,75,154000,2053.3333333333335,"kr."]
[null,"Pumpestationer i brønde (< 6,25 m2), SRO",2014,10,25000,2500,"kr."]
[null,"Mindre renseanlæg < 5.000 PE uden mulighed for opdeling",2015,40,305000,7625,"kr."]
[null,"Mindre renseanlæg < 5.000 PE uden mulighed for opdeling",2015,40,610000,15250,"kr."]
[null,"Mindre renseanlæg < 5.000 PE uden mulighed for opdeling",2015,40,509000,12725,"kr."]
[null,"Mindre renseanlæg < 5.000 PE uden mulighed for opdeling",2015,40,1526000,38150,"kr."]
[null,"Sand- og fedtfang, Kontruktioner",2015,60,3070000,{"$f":"E83/D83","v":51166.666666666664},"kr."]
[null,"Sand- og fedtfang, Mek/EL",2015,20,2000000,100000,"kr."]
[null,"Sand- og fedtfang, SRO",2015,10,1000000,100000,"kr."]
[null,"Beluftningstanke, Konstruktioner",2015,60,5000000,83333.333333333328,"kr."]
[null,"Beluftningstanke, Mek/EL",2015,20,3000000,150000,"kr."]
[null,"Beluftningstanke, SRO",2015,10,2000000,200000,"kr."]
[null,"Ledningsnet = Ø 200 mm",2015,75,509000,6786.666666666667,"kr."]
[null,"Ledningsnet = Ø 200 mm",2015,75,1017000,13560,"kr."]
[null,"Ledningsnet = Ø 200 mm",2015,75,509000,6786.666666666667,"kr."]
[null,"Ledningsnet = Ø 200 mm",2015,75,1000000,13333.333333333334,"kr."]
[null,"Ledningsnet = Ø 200 mm",2015,75,1017000,13560,"kr."]
[null,"Ledningsnet = Ø 200 mm",2015,75,500000,6666.666666666667,"kr."]
[null,"Tryksatte minipumpestationer (husstandssystemer)",2015,30,434000,14466.666666666666,"kr."]
[null,"Ø 200 mm < Ledningsnet = Ø 500 mm",2015,75,2627000,35026.666666666664,"kr."]
[null,"Pumpestationer i brønde (< 6,25 m2), Konstruktioner",2015,50,300000,6000,"kr."]
[null,"Pumpestationer i brønde (< 6,25 m2), Mek/EL",2015,20,150000,7500,"kr."]
[null,"Pumpestationer i brønde (< 6,25 m2), SRO",2015,10,50000,5000,"kr."]
[null,"Ledningsnet = Ø 200 mm",2015,75,1017000,13560,"kr."]
[null,"Ledningsnet = Ø 200 mm",2015,75,306000,4080,"kr."]
[null,"Pumpestationer i brønde (< 6,25 m2), Konstruktioner",2015,50,900000,18000,"kr."]
[null,"Pumpestationer i brønde (< 6,25 m2), Mek/EL",2015,20,426000,21300,"kr."]
[null,"Ledningsnet = Ø 200 mm",2015,75,10500000,{"$f":"E104/D104","v":140000},"kr."]
[null,"Ledningsnet = Ø 200 mm",2015,75,7970000,106266.66666666667,"kr."]
[null,"Pumpestationer i brønde (< 6,25 m2), SRO",2015,10,200000,20000,"kr."]
[null,"Ø 200 mm < Ledningsnet = Ø 500 mm",2015,75,5085000,67800,"kr."]
[null,"Ø 200 mm < Ledningsnet = Ø 500 mm",2015,75,509000,6786.666666666667,"kr."]
[null,"Ø 200 mm < Ledningsnet = Ø 500 mm",2015,75,1500000,20000,"kr."]
[null,"Tillæg for 2014",null,null,null,{"$f":"SUMIF(C8:C109,\"2014\",F8:F109)","v":595315.00000000012},"kr."]
[null,"Tillæg for 2015",null,null,null,{"$f":"SUMIF(C8:C109,\"2015\",F8:F109)","v":1304730},"kr."]
[null,"Tillæg i alt",null,null,null,{"$f":"F110+F111","v":1900045},"kr."]

{"sheet":"8. 1-1 omkostninger","index":7,"n_rows":24,"n_cols":4,"rows_kept":24,"cut":false,"hidden":false,"merged":[[3,1,3,3],[14,1,14,3],[20,1,20,3]]}
[{"$f":"'7. Planlagte investeringer'!A1","v":"Tønder Spildevand A/S"}]
[]
[]
[null,"Fane 8. 1:1 omkostninger"]
[]
[null,"Tillæg for budgetterede 1:1 omkostninger i 2015"]
[null,"Betaling til Forsyningssekretariatet",33000,"kr."]
[null,"Spildevandsafgift",1030860,"kr."]
[null,"Køb af varer og tjenesteydelser hos et andet prisloftreguleret vandselskab",507554,"kr."]
[null,"Digelaget",170500,"kr."]
[null,"Ejendomsskatter",114115,"kr."]
[null,"Tillæg i alt ",{"$f":"SUM(C7:C11)","v":1856029},"kr."]
[]
[]
[null,"Tillæg for budgetterede nødvendige udgifter til revisorerklæringer samt ordinært medlemskab af DANVA og FVD i 2015"]
[null,"Betaling for ordinært medlemskab af DANVA/FVD",112800,"kr."]
[null,"Betaling for revisorerklæringer",40000,"kr."]
[null,"Tillæg i alt ",{"$f":"SUM(C16:C17)","v":152800},"kr."]
[]
[]
[null,"Korrektion af tillæg for faktiske 1:1 omkostninger (inkl. revisorerklæringer og ordinært medlemskab af DANVA/FVD) i 2013"]
[null,"Selskabets faktiske 1:1 omkostninger mv. i 2013, jf. reguleringsregnskabet",1705006,"kr."]
[null,"Tillæg for budgetterede 1:1 omkostninger mv. i prisloft 2013",2910490,"kr."]
[null,"Korrektion af tillæg for budgetterede 1:1 omkostninger mv. i 2013",{"$f":"C22-C23","v":-1205484},"kr."]

{"sheet":"9. Miljø- og servicemål","index":8,"n_rows":14,"n_cols":4,"rows_kept":14,"cut":false,"hidden":false,"merged":[[3,1,3,3]]}
[{"$f":"'8. 1-1 omkostninger'!A1","v":"Tønder Spildevand A/S"}]
[]
[]
[null,"Fane 9. Driftsomkostninger til miljø- og servicemål "]
[]
[null,"Tillæg for budgetterede driftsomkostninger til miljø- og servicemål i 2015"]
[null,"Ledelsessystem (certificering)",300000,"kr."]
[null,"Tillæg i alt",{"$f":"SUM(C7:C7)","v":300000},"kr."]
[]
[]
[null,"Korrektion af tillæg for faktiske driftsomkostninger til miljø- og servicemål i 2013"]
[null,"Selskabets faktiske driftsomkostninger til miljø- og servicemål i 2013, jf. reguleringsregnskabet",0,"kr."]
[null,"Tillæg for budgetterede driftsomkostninger til miljø- og servicemål i prisloft 2013",0,"kr."]
[null,"Korrektion af tillæg for budgetterede driftsomkostninger til miljø- og servicemål i 2013",{"$f":"C12-C13","v":0},"kr."]

{"sheet":"10. Klimatilpasning","index":9,"n_rows":15,"n_cols":4,"rows_kept":15,"cut":false,"hidden":false,"merged":[[3,1,3,3],[11,1,11,3],[6,1,6,3]]}
[{"$f":"'9. Miljø- og servicemål'!A1","v":"Tønder Spildevand A/S"}]
[]
[]
[null,"Fane 10. Medfinansiering af klimatilpasningsprojekter"]
[]
[]
[null,"Tillæg for budgetterede omkostninger til medfinansiering af klimatilpasningsprojekter i 2015"]
[null,null,0,"kr."]
[null,"Tillæg i alt",{"$f":" SUM(C8:C8)","v":0},"kr."]
[]
[]
[null,"Korrektion af tillæg for faktiske omkostninger til medfinansiering af klimatilpasningsprojekter i 2013"]
[null,"Selskabets faktiske driftsomkostninger til klimatilpasningsprojekter i 2013, jf. reguleringsregnskabet",0,"kr."]
[null,"Tillæg for budgetterede driftsomkostninger til klimatilpasningsprojekter i prisloft 2013",0,"kr."]
[null,"Korrektion af tillæg for budgetterede omkostninger til klimatilpasningsprojekter i 2013",{"$f":"C13-C14","v":0},"kr."]

{"sheet":"11. Nettofinansielle poster","index":10,"n_rows":15,"n_cols":4,"rows_kept":15,"cut":false,"hidden":false,"merged":[[3,1,3,3]]}
[{"$f":"'10. Klimatilpasning'!A1","v":"Tønder Spildevand A/S"}]
[]
[]
[null,"Fane 11. Nettofinansielle poster"]
[]
[null,"Tillæg for budgetterede nettofinansielle poster i 2015"]
[null,"Budgetterede renteudgifter og gebyrer i 2015",1464213,"kr."]
[null,"Budgetterede renteindtægter i 2015",17114,"kr."]
[null,"Tillæg/fradrag i alt",{"$f":"C7-C8","v":1447099},"kr."]
[]
[]
[null,"Korrektion af tillæg for faktiske nettofinansielle poster i 2013"]
[null,"Selskabets faktiske nettofinansielle poster i 2013, jf. reguleringsregnskabet",1447099,"kr."]
[null,"Tillæg for budgetterede nettofinansielle poster i prisloft 2013",412000,"kr."]
[null,"Korrektion af tillæg for budgetterede nettofinansielle poster i 2013",{"$f":"C13-C14","v":1035099},"kr."]

{"sheet":"12. Over- eller underdækning","index":11,"n_rows":11,"n_cols":4,"rows_kept":11,"cut":false,"hidden":false,"merged":[[3,1,3,3]]}
[{"$f":"'11. Nettofinansielle poster'!A1","v":"Tønder Spildevand A/S"}]
[]
[]
[null,"Fane 12. Over- eller underdækning til og med 2010"]
[]
[null,"Tillæg/fradrag for over- eller underdækning til og med 2010"]
[null,"Opgjort over- eller underdækning per 31. december 2010",-8712050,"kr."]
[null,"Heraf beløb indregnet i prislofterne for 2011 - 2014",-4278089.7619047621,"kr."]
[null,"Endnu ikke indregnet over- eller underdækning",{"$f":"C7-C8","v":-4433960.2380952379},"kr."]
[null,"Resterende indregningsperiode (fastsat i prisloftet for 2012)",6,"år"]
[null,"Tillæg/fradrag i alt",{"$f":"IF(C7=0,0,C9/C10)","v":-738993.37301587302},"kr."]

{"sheet":"13. Kontrol med indtægtsrammen","index":12,"n_rows":39,"n_cols":12,"rows_kept":39,"cut":false,"hidden":false,"merged":[[3,1,3,5],[31,1,31,4],[5,1,5,5]]}
[{"$f":"'12. Over- eller underdækning'!A1","v":"Tønder Spildevand A/S"}]
[]
[]
[null,"Fane 13. Korrektion for overholdelse af indtægtsrammen i prisloftet for 2013"]
[]
[null,"Samlet opgørelse vedrørende overholdelse af indtægtsrammen i prisloftet for 2013"]
[null,"Indtægtsramme i prisloftet for 2013",null,null,78872529.879930705,"kr."]
[null,"Ikke anvendt likviditet vedrørende investeringer i 2013"]
[null,"Tillæg for historiske investeringer ",40071193.956950702,"kr."]
[null,"Tillæg for gennemførte investeringer i 2011",1158588,"kr."]
[null,"Korrektion af tillæg for planlagte investeringer i 2011",392869,"kr."]
[null,"Tillæg for planlagte investeringer i 2012 og 2013",1571527,"kr."]
[null,"Indtægter fra tilslutningsbidrag",8844761,"kr."]
[null,"Indtægter fra salg af anlægsaktiver",0,"kr."]
[null,"Erstatninger vedr. anlægsaktiver mv.",0,"kr."]
[null,"Ekstraordinær effektiviseringsgevinst anvendt til investeringer",0,"kr."]
[null,"Udgifter til investeringer",-52038939,"kr."]
[null,"Ikke anvendt likviditet vedr. investeringer i alt",{"$f":"SUM(C9:C17)","v":-4.3049298226833344E-2},"kr.",{"$f":"IF(C18<0,0,-C18)","v":0},"kr."]
[null,"Ekstraordinære effektiviseringsgevinster anvendt til takstnedsættelse"]
[null,"Ekstraordinær effektiviseringsgevinst anvendt til takstnedsættelse",0,"kr.",{"$f":"-C20","v":0},"kr."]
[null,"Korrektion af ikke opkrævet tillæg fra 2011 i prisloft 2013"]
[null,"Korrektion af ikke opkrævet tillæg fra 2011 i prisloft 2013",0,"kr.",{"$f":"-C22","v":0},"kr."]
[null,"Indtægter fra primære aktiviteter mv."]
[null,"Indtægter fra kubikmetertakster, faste takster, særbidrag, målergebyrer samt andre takster og gebyrer",65232020,"kr."]
[null,"Fordeling af indtægt efter § 6, stk. 2.",4243421.5999999996,"kr."]
[null,"Andre indtægter i prisloftåret, som selskabet har opnået i forbindelse med eller som følge af selskabets primære aktiviteter",0,"kr."]
[null,"Indtægter fra primære aktiviteter mv. i alt",{"$f":"SUM(C24:C26)","v":69475441.599999994},"kr.",{"$f":"-C27","v":-69475441.599999994},"kr."]
[null,"Tillæg/fradrag i prisloftet for 2015 i alt",null,null,{"$f":"E7+E18+E20+E22+E27","v":9397088.2799307108},"kr."]
[]
[]
[]
[null,"Oversigt over ekstraordinære effektiviseringsgevinster"]
[]
[null,null,2012,null,2013,null,2014,null,2015,null,2016]
[null,"Indhentet ekstraordinær effektiviseringsgevinst",0,"kr.",0,"kr.",null,"kr.",null,"kr.",null,"kr."]
[null,"Gevinst anvendt til investeringer",0,"kr.",0,"kr.",null,"kr.",null,"kr.",null,"kr."]
[null,"Gevinst anvendt til takstnedsættelse",0,"kr.",0,"kr.",null,"kr.",null,"kr.",null,"kr."]
[null,"Korrektion for  effektiviseringsgevinst der ikke er anvendt inden 4 år",0,"kr.",0,"kr.",null,"kr.",null,"kr.",{"$f":"IF(C39>SUM(E36:I37),C39-SUM(E36:I37),0)*-1","v":0},"kr."]
[null,"Resterende gevinst",{"$f":"C35-C36-C37","v":0},"kr.",{"$f":"C39+E35-E36-E37","v":0},"kr.",{"$f":"E39+G35-G36-G37","v":0},"kr.",{"$f":"G39+I35-I36-I37","v":0},"kr.",{"$f":"K35-K36-K37+K38+I39","v":0},"kr."]